[Event "FIDE WSTC Open 50 2025"]
[Site "Prague"]
[Date "2025.02.20"]
[Round "4.25"]
[White "Csiszar, Csaba"]
[Black "Plotkin, Victor"]
[Result "1/2-1/2"]
[Annotator "RC"]
[ECO "D02"]
[WhiteElo "2378"]
[BlackElo "2259"]
[PlyCount "108"]
[EventDate "2025.02.17"]
[EventType "team-tourn"]
[EventCountry "CZE"]
[SourceTitle "playchess.com"]
[Source "ChessBase"]
[SourceQuality "1"]
[TimeControl "40/5400+30:1800+30"]

1. d4 {[%emt 0:00:04]} d5 {[%emt 0:00:44]} 2. Nf3 {[%emt 0:00:06]} Nf6 {[%emt 0:00:06]} 3. Bf4 {[%emt 0:00:06]} c5 {[%emt 0:00:55]} 4. e3 {[%emt 0:00:06]} Qb6 {[%emt 0:01:16]} 5. Nc3 {[%emt 0:00:58]} Bd7 {[%emt 0:00:32]} 6. dxc5 {[%emt 0:15:00]} Qxc5 {[%emt 0:05:20]} 7. Be2 {[%emt 0:20:57]} e6 {[%emt 0:01:09]} 8. O-O {[%emt 0:01:55]} Be7 {[%emt 0:04:53]} 9. a4 {[%emt 0:09:17]} O-O {[%emt 0:10:55]} 10. Ne5 {[%emt 0:01:53]} Rc8 {[%emt 0:03:12]} 11. Bd3 {[%emt 0:04:47]} Be8 {[%emt 0:03:29]} 12. Nb5 {[%emt 0:02:15]} Nc6 {[%emt 0:05:19]} 13. c3 {[%emt 0:00:35]} Nxe5 {[%emt 0:02:33]} 14. Bxe5 {[%emt 0:00:04]} Qc6 {[%emt 0:15:05]} 15. Nd4 {[%emt 0:06:52]} Qb6 {[%emt 0:01:59]} 16. a5 {[%emt 0:04:57]} Qd8 {[%emt 0:02:46]} 17. Qf3 {[%emt 0:01:18]} a6 {[%emt 0:05:46]} 18. Qg3 {[%emt 0:00:57]} g6 {[%emt 0:01:18]} 19. Rfd1 Nd7 {[%emt 0:02:52]} 20. Bd6 {[%emt 0:02:33]} Bh4 {[%emt 0:03:04]} 21. Qh3 {[%emt 0:01:24]} Nc5 {[%emt 0:01:45]} 22. Be5 {[%emt 0:08:22]} Nxd3 {[%emt 0:00:59]} 23. Rxd3 {[%emt 0:00:05]} Bd7 {[%emt 0:06:20]} 24. Re1 {[%emt 0:11:26]} Bf6 {[%emt 0:00:59]} 25. Bxf6 {[%emt 0:01:04]} Qxf6 {[%emt 0:00:04]} 26. e4 {[%emt 0:00:11]} dxe4 {[%emt 0:01:35]} 27. Rxe4 {[%emt 0:00:11]} Rc5 {[%emt 0:02:28]} 28. b4 {[%emt 0:01:53]} Rh5 {[%emt 0:01:05]} 29. Qf3 {[%emt 0:02:43]} Qxf3 {[%emt 0:01:14]} 30. Nxf3 {[%emt 0:00:05]} Bc6 {[%emt 0:00:52]} 31. Red4 {[%emt 0:01:09]} Kf8 {[%emt 0:06:58]} 32. c4 {[%emt 0:01:35]} e5 {[%emt 0:01:08]} 33. Rd8+ {[%emt 0:00:21]} Rxd8 {[%emt 0:00:01]} 34. Rxd8+ {[%emt 0:00:04]} Ke7 {[%emt 0:00:09]} 35. Rb8 {[%emt 0:00:08]} Kd6 {[%emt 0:01:14]} 36. Rd8+ {[%emt 0:01:59]} Kc7 {[%emt 0:00:58]} 37. Rf8 {[%emt 0:00:04]} Rf5 {[%emt 0:00:32]} 38. Nd2 {[%emt 0:00:17]} Rf4 {[%emt 0:01:18]} 39. Kf1 {[%emt 0:00:08]} Kd6 {[%emt 0:02:55]} 40. f3 {[%emt 0:01:24]} Ke7 {[%emt 0:00:47]} 41. Rb8 {[%emt 0:30:08]} Rd4 {[%emt 0:31:12]} 42. Ke2 {[%emt 0:00:15]} Rd8 {[%emt 0:00:00]} 43. Rxd8 {[%emt 0:00:00]} Kxd8 {[%emt 0:00:00]} 44. Ke3 {[%emt 0:00:00]} Ke7 {[%emt 0:00:00]} 45. h4 {[%emt 0:00:00]} h6 {[%emt 0:00:00]} 46. g3 {[%emt 0:00:00]} f5 {[%emt 0:00:00]} 47. f4 {[%emt 0:00:00]} Kf6 {[%emt 0:00:00]} 48. Nb3 {[%emt 0:00:00]} g5 {[%emt 0:00:00]} 49. hxg5+ {[%emt 0:00:00]} hxg5 {[%emt 0:00:00]} 50. Nc5 {[%emt 0:00:00]} exf4+ {[%emt 0:00:00]} 51. gxf4 {[%emt 0:00:00]} g4 {[%emt 0:00:00]} 52. Kf2 {[%emt 0:00:00]} Ke7 {[%emt 0:00:00]} 53. b5 {[%emt 0:00:00]} axb5 {[%emt 0:00:00]} 54. cxb5 {[%emt 0:00:00]} Bxb5 {[%emt 0:00:00]} 1/2-1/2

[Event "FIDE WSTC Open 50 2025"]
[Site "Prague"]
[Date "2025.02.20"]
[Round "4.26"]
[White "Cummings, David H."]
[Black "Czebe, Attila"]
[Result "1-0"]
[Annotator "ChessBase"]
[ECO "A21"]
[WhiteElo "2255"]
[BlackElo "2255"]
[PlyCount "89"]
[EventDate "2025.02.17"]
[EventType "team-tourn"]
[EventCountry "CZE"]
[SourceTitle "playchess.com"]
[Source "ChessBase"]
[SourceQuality "1"]
[TimeControl "40/5400+30:1800+30"]

1. c4 {[%emt 0:00:08]} e5 {[%emt 0:01:13]} 2. Nc3 {[%emt 0:00:14]} d6 {[%emt 0:00:44]} 3. Nf3 {[%emt 0:00:40]} g6 {[%emt 0:00:19]} 4. d4 {[%emt 0:01:09]} Bg7 {[%emt 0:00:06]} 5. e4 {[%emt 0:02:18]} Nc6 {[%emt 0:00:56]} 6. Bg5 {[%emt 0:01:28]} f6 {[%emt 0:00:04]} 7. Be3 {[%emt 0:00:24]} Nh6 {[%emt 0:00:04]} 8. h3 {[%emt 0:04:58]} Nf7 {[%emt 0:01:44]} 9. d5 {[%emt 0:05:58]} Ne7 {[%emt 0:00:25]} 10. g4 {[%emt 0:00:15]} c5 {[%emt 0:21:14]} 11. Bd3 {[%emt 0:14:38]} h5 {[%emt 0:07:24]} 12. gxh5 {[%emt 0:08:00]} Rxh5 {[%emt 0:01:02]} 13. h4 {[%emt 0:00:28]} Bg4 {[%emt 0:11:10]} 14. Be2 {[%emt 0:00:55]} Qd7 {[%emt 0:01:22]} 15. Qb3 {[%emt 0:08:34]} O-O-O {[%emt 0:07:20]} 16. Qa3 {[%emt 0:01:30]} Kb8 {[%emt 0:02:20]} 17. b4 {[%emt 0:03:28]} Bh6 {[%emt 0:01:17]} 18. bxc5 {[%emt 0:06:37]} Bxe3 {[%emt 0:00:06]} 19. fxe3 {[%emt 0:00:26]} dxc5 {[%emt 0:01:09]} 20. Qxc5 {[%emt 0:00:23]} Rc8 {[%emt 0:00:45]} 21. Qb4 {[%emt 0:03:14]} Qd6 {[%emt 0:01:20]} 22. Qb3 {[%emt 0:06:43]} Qc5 {[%emt 0:02:46]} 23. Rb1 {[%emt 0:00:22]} Nd6 {[%emt 0:00:49]} 24. Na4 {[%emt 0:03:46]} Qa5+ {[%emt 0:00:27]} 25. Nd2 {[%emt 0:00:18]} Bd7 {[%emt 0:00:45]} 26. Bxh5 {[%emt 0:06:17]} Rxc4 {[%emt 0:00:05]} 27. Nb6 {[%emt 0:08:39]} axb6 {[%emt 0:00:47]} 28. Qxb6 {[%emt 0:00:39]} Qxb6 {[%emt 0:10:13]} 29. Rxb6 {[%emt 0:00:03]} gxh5 {[%emt 0:00:42]} 30. Nxc4 {[%emt 0:01:26]} Nxc4 {[%emt 0:00:04]} 31. Rxf6 {[%emt 0:00:19]} Nc8 {[%emt 0:00:00]} 32. Rg1 {[%emt 0:04:20]} N8d6 {[%emt 0:02:18]} 33. Rg5 {[%emt 0:00:40]} Nxe4 {[%emt 0:01:24]} 34. Rf8+ {[%emt 0:00:09]} Ka7 {[%emt 0:04:09]} 35. Rxh5 {[%emt 0:00:46]} Bb5 {[%emt 0:00:40]} 36. Rh7 {[%emt 0:02:07]} Nxe3 {[%emt 0:00:10]} 37. h5 {[%emt 0:01:07]} Bd3 {[%emt 0:06:58]} 38. Re7 {[%emt 0:01:47]} Nxd5 {[%emt 0:10:36]} 39. Rxe5 {[%emt 0:00:05]} Nb4 {[%emt 0:01:32]} 40. h6 {[%emt 0:01:41]} Nd6 {[%emt 0:00:36]} 41. a3 {[%emt 0:31:58]} Nc2+ {[%emt 0:30:38]} 42. Kd2 {[%emt 0:00:00]} Bh7 {[%emt 0:00:00]} 43. Re7 {[%emt 0:00:00]} Bf5 {[%emt 0:00:00]} 44. Rxf5 {[%emt 0:00:00]} Nxf5 {[%emt 0:00:00]} 45. h7 {[%emt 0:00:00]} 1-0

[Event "FIDE WSTC Open 50 2025"]
[Site "Prague"]
[Date "2025.02.20"]
[Round "4.27"]
[White "Varga, Zoltan"]
[Black "Barron, Michael"]
[Result "1-0"]
[Annotator "ChessBase"]
[ECO "A80"]
[WhiteElo "2301"]
[BlackElo "2049"]
[PlyCount "89"]
[EventDate "2025.02.17"]
[EventType "team-tourn"]
[EventCountry "CZE"]
[SourceTitle "playchess.com"]
[Source "ChessBase"]
[SourceQuality "1"]
[TimeControl "40/5400+30:1800+30"]

1. d4 {[%emt 0:00:03]} f5 {[%emt 0:00:11]} 2. Nh3 {[%emt 0:00:45]} Nf6 {[%emt 0:05:38]} 3. g3 {[%emt 0:00:42]} d5 {[%emt 0:02:06]} 4. Bg2 {[%emt 0:00:32]} e6 {[%emt 0:00:47]} 5. O-O {[%emt 0:00:07]} c5 {[%emt 0:01:11]} 6. c4 {[%emt 0:01:25]} Nc6 {[%emt 0:01:13]} 7. cxd5 {[%emt 0:01:14]} Nxd5 {[%emt 0:00:58]} 8. Nc3 {[%emt 0:02:08]} Nxc3 {[%emt 0:10:29]} 9. bxc3 {[%emt 0:00:12]} cxd4 {[%emt 0:00:35]} 10. cxd4 {[%emt 0:00:05]} Nxd4 {[%emt 0:01:05]} 11. Bb2 {[%emt 0:05:39]} e5 {[%emt 0:00:18]} 12. e3 {[%emt 0:03:25]} Nc6 {[%emt 0:00:41]} 13. Bxc6+ {[%emt 0:05:27]} bxc6 {[%emt 0:00:14]} 14. Qxd8+ {[%emt 0:00:05]} Kxd8 {[%emt 0:00:25]} 15. Rfd1+ {[%emt 0:00:02]} Ke8 {[%emt 0:00:42]} 16. Bxe5 {[%emt 0:06:33]} Be6 {[%emt 0:03:34]} 17. Nf4 {[%emt 0:02:06]} Bf7 {[%emt 0:00:39]} 18. Rab1 {[%emt 0:06:31]} Bxa2 {[%emt 0:00:56]} 19. Rb7 {[%emt 0:01:20]} Rd8 {[%emt 0:01:08]} 20. Rxd8+ {[%emt 0:02:27]} Kxd8 {[%emt 0:00:12]} 21. Rxa7 {[%emt 0:00:03]} Bb3 {[%emt 0:08:22]} 22. Bxg7 {[%emt 0:01:46]} Bxg7 {[%emt 0:00:18]} 23. Rxg7 {[%emt 0:00:03]} Kc8 {[%emt 0:00:20]} 24. Kg2 {[%emt 0:10:09]} c5 {[%emt 0:01:52]} 25. Ra7 {[%emt 0:01:00]} Rd8 {[%emt 0:01:01]} 26. Ra5 {[%emt 0:00:48]} c4 {[%emt 0:00:26]} 27. Rxf5 {[%emt 0:00:35]} Kb7 {[%emt 0:00:12]} 28. Ne6 {[%emt 0:04:55]} Rd2 {[%emt 0:01:50]} 29. Nd4 {[%emt 0:00:35]} Ba2 {[%emt 0:01:24]} 30. g4 {[%emt 0:02:20]} Rb2 {[%emt 0:04:17]} 31. Rb5+ {[%emt 0:03:06]} Rxb5 {[%emt 0:01:09]} 32. Nxb5 {[%emt 0:00:02]} Kc6 {[%emt 0:01:16]} 33. Nc3 {[%emt 0:00:07]} Bb3 {[%emt 0:00:19]} 34. Kf3 {[%emt 0:00:02]} Bc2 {[%emt 0:00:38]} 35. e4 {[%emt 0:00:52]} Kc5 {[%emt 0:01:40]} 36. Ke3 {[%emt 0:00:05]} Bd3 {[%emt 0:01:03]} 37. g5 {[%emt 0:00:26]} Bf1 {[%emt 0:01:14]} 38. h4 {[%emt 0:00:37]} Bh3 {[%emt 0:00:26]} 39. f4 {[%emt 0:00:39]} Bg4 {[%emt 0:00:45]} 40. f5 {[%emt 0:00:58]} Bh5 {[%emt 0:00:39]} 41. e5 {[%emt 0:32:01]} Be8 {[%emt 0:31:22]} 42. e6 {[%emt 0:00:31]} Kd6 {[%emt 0:01:12]} 43. Kd4 {[%emt 0:00:22]} Bh5 {[%emt 0:00:48]} 44. Ne4+ {[%emt 0:00:17]} Ke7 {[%emt 0:00:38]} 45. Ke5 {[%emt 0:04:16]} 1-0

[Event "FIDE WSTC Open 50 2025"]
[Site "Prague"]
[Date "2025.02.20"]
[Round "4.28"]
[White "Findlay, Ian T."]
[Black "Horvath, Peter"]
[Result "0-1"]
[Annotator "RC"]
[ECO "B32"]
[WhiteElo "2089"]
[BlackElo "2354"]
[PlyCount "104"]
[EventDate "2025.02.17"]
[EventType "team-tourn"]
[EventCountry "CZE"]
[SourceTitle "playchess.com"]
[Source "ChessBase"]
[SourceQuality "1"]
[TimeControl "40/5400+30:1800+30"]

1. e4 {[%emt 0:00:02]} c5 {[%emt 0:00:12]} 2. Nf3 {[%emt 0:00:07]} Nc6 {[%emt 0:00:12]} 3. d4 {[%emt 0:00:05]} cxd4 {[%emt 0:00:12]} 4. Nxd4 {[%emt 0:00:03]} e5 {[%emt 0:00:20]} 5. Nb5 {[%emt 0:00:09]} d6 {[%emt 0:00:24]} 6. c4 {[%emt 0:00:08]} Be7 {[%emt 0:01:04]} 7. N1c3 {[%emt 0:00:39]} a6 {[%emt 0:00:44]} 8. Na3 {[%emt 0:00:07]} f5 {[%emt 0:01:01]} 9. exf5 {[%emt 0:00:31]} Bxf5 {[%emt 0:00:10]} 10. Bd3 {[%emt 0:01:03]} Be6 {[%emt 0:00:43]} 11. O-O {[%emt 0:01:34]} Nf6 {[%emt 0:01:27]} 12. Nc2 {[%emt 0:05:05]} O-O {[%emt 0:01:27]} 13. b3 {[%emt 0:12:17]} Qd7 {[%emt 0:11:40]} 14. Bb2 {[%emt 0:02:18]} Bd8 {[%emt 0:17:19]} 15. Qd2 {[%emt 0:14:29]} Bb6 {[%emt 0:05:39]} 16. Ne3 {[%emt 0:01:55]} Rad8 {[%emt 0:04:35]} 17. Rad1 {[%emt 0:00:36]} Kh8 {[%emt 0:05:41]} 18. Bb1 {[%emt 0:17:17]} Ng4 {[%emt 0:11:32]} 19. Nxg4 {[%emt 0:03:29]} Bxg4 {[%emt 0:00:15]} 20. Qd3 {[%emt 0:03:58]} g6 {[%emt 0:01:38]} 21. Rd2 {[%emt 0:00:46]} Nd4 {[%emt 0:01:27]} 22. Nd5 {[%emt 0:00:41]} Nf3+ {[%emt 0:08:43]} 23. Kh1 {[%emt 0:00:33]} Nxd2 {[%emt 0:00:08]} 24. Qxd2 {[%emt 0:00:10]} Ba7 {[%emt 0:04:49]} 25. f4 {[%emt 0:00:52]} Be6 {[%emt 0:05:30]} 26. Be4 {[%emt 0:00:27]} Qg7 {[%emt 0:04:33]} 27. g3 {[%emt 0:02:45]} Bd4 {[%emt 0:03:08]} 28. Bxd4 {[%emt 0:03:32]} exd4 {[%emt 0:00:06]} 29. Rd1 {[%emt 0:05:57]} Bg4 {[%emt 0:00:38]} 30. Re1 {[%emt 0:01:26]} Rde8 {[%emt 0:02:03]} 31. Kg2 {[%emt 0:00:09]} Be6 {[%emt 0:03:35]} 32. Nb4 {[%emt 0:00:27]} Bf5 {[%emt 0:00:48]} 33. Bf3 {[%emt 0:02:21]} Rxe1 {[%emt 0:01:53]} 34. Qxe1 {[%emt 0:00:07]} a5 {[%emt 0:00:19]} 35. Nd5 {[%emt 0:00:12]} d3 {[%emt 0:01:01]} 36. g4 {[%emt 0:00:21]} Bd7 {[%emt 0:00:08]} 37. Qe3 {[%emt 0:00:30]} Bc6 {[%emt 0:01:51]} 38. Qxd3 {[%emt 0:00:11]} Bxd5 {[%emt 0:00:33]} 39. Qxd5 {[%emt 0:00:09]} Rxf4 {[%emt 0:00:53]} 40. Qxd6 {[%emt 0:00:09]} Rf8 {[%emt 0:01:10]} 41. c5 {[%emt 0:32:45]} Qb2+ {[%emt 0:04:34]} 42. Kg3 {[%emt 0:00:00]} Kg7 {[%emt 0:00:21]} 43. Qd5 {[%emt 0:00:00]} Rf7 {[%emt 0:00:48]} 44. a4 {[%emt 0:00:00]} Re7 {[%emt 0:01:28]} 45. h4 {[%emt 0:00:00]} Qe5+ {[%emt 0:00:43]} 46. Qxe5+ {[%emt 0:00:00]} Rxe5 {[%emt 0:00:05]} 47. Bxb7 {[%emt 0:00:00]} Rxc5 {[%emt 0:00:03]} 48. Kf4 {[%emt 0:00:00]} Rc3 {[%emt 0:01:25]} 49. Bd5 {[%emt 0:00:00]} Rh3 {[%emt 0:00:23]} 50. Bf3 {[%emt 0:00:00]} Rxh4 {[%emt 0:07:09]} 51. Kg3 {[%emt 0:00:00]} g5 {[%emt 0:00:09]} 52. Bd5 {[%emt 0:00:00]} Rh6 {[%emt 0:01:01]} 0-1

[Event "FIDE WSTC Open 50 2025"]
[Site "Prague"]
[Date "2025.02.20"]
[Round "4.29"]
[White "Titscher, Libor"]
[Black "Wang, Pin"]
[Result "1/2-1/2"]
[Annotator "RC"]
[ECO "A22"]
[WhiteElo "2147"]
[BlackElo "2389"]
[PlyCount "83"]
[EventDate "2025.02.17"]
[EventType "team-tourn"]
[EventCountry "CZE"]
[SourceTitle "playchess.com"]
[Source "ChessBase"]
[SourceQuality "1"]
[TimeControl "40/5400+30:1800+30"]

1. c4 {[%emt 0:00:06]} e5 {[%emt 0:00:05]} 2. Nc3 {[%emt 0:00:05]} Nf6 {[%emt 0:00:09]} 3. g3 {[%emt 0:00:06]} Nc6 {[%emt 0:00:12]} 4. Bg2 {[%emt 0:00:07]} g6 {[%emt 0:00:05]} 5. Nf3 {[%emt 0:00:16]} Bg7 {[%emt 0:00:06]} 6. d3 {[%emt 0:00:07]} d6 {[%emt 0:00:39]} 7. Rb1 {[%emt 0:00:21]} a5 {[%emt 0:00:16]} 8. a3 {[%emt 0:00:08]} O-O {[%emt 0:00:20]} 9. O-O {[%emt 0:00:07]} Re8 {[%emt 0:00:11]} 10. Nd2 {[%emt 0:00:09]} Be6 {[%emt 0:08:06]} 11. b4 {[%emt 0:01:04]} axb4 {[%emt 0:00:06]} 12. axb4 {[%emt 0:00:05]} Qd7 {[%emt 0:05:22]} 13. b5 {[%emt 0:00:34]} Nd8 {[%emt 0:00:30]} 14. Re1 {[%emt 0:00:12]} Bh3 {[%emt 0:01:17]} 15. Bh1 {[%emt 0:01:43]} c6 {[%emt 0:00:55]} 16. Qb3 {[%emt 0:05:03]} h6 {[%emt 0:17:48]} 17. Bb2 {[%emt 0:28:34]} Ne6 {[%emt 0:09:10]} 18. Na4 {[%emt 0:04:48]} Qc7 {[%emt 0:10:23]} 19. Ra1 {[%emt 0:05:39]} Nd4 {[%emt 0:13:22]} 20. Bxd4 {[%emt 0:03:53]} exd4 {[%emt 0:00:02]} 21. Ne4 {[%emt 0:07:12]} Ng4 {[%emt 0:01:18]} 22. bxc6 {[%emt 0:06:53]} bxc6 {[%emt 0:00:17]} 23. Qb6 {[%emt 0:00:59]} Qxb6 {[%emt 0:16:53]} 24. Nxb6 {[%emt 0:00:49]} Rxa1 {[%emt 0:00:02]} 25. Rxa1 {[%emt 0:00:01]} f5 {[%emt 0:00:04]} 26. f3 {[%emt 0:09:43]} fxe4 {[%emt 0:04:36]} 27. fxg4 {[%emt 0:00:06]} exd3 {[%emt 0:03:17]} 28. exd3 {[%emt 0:00:03]} Re3 {[%emt 0:02:13]} 29. Be4 {[%emt 0:09:46]} Kh7 {[%emt 0:00:21]} 30. Ra7 {[%emt 0:00:10]} Bxg4 {[%emt 0:00:34]} 31. Nd7 {[%emt 0:00:24]} Kg8 {[%emt 0:05:02]} 32. Bxg6 {[%emt 0:03:03]} Be5 {[%emt 0:01:19]} 33. Nxe5 {[%emt 0:04:58]} dxe5 {[%emt 0:00:14]} 34. Be4 {[%emt 0:01:16]} Be2 {[%emt 0:00:19]} 35. Bxc6 {[%emt 0:02:43]} Rxd3 {[%emt 0:01:35]} 36. Bd5+ {[%emt 0:00:28]} Kh8 {[%emt 0:00:17]} 37. Kf2 {[%emt 0:01:06]} Rd2 {[%emt 0:00:38]} 38. Ke1 {[%emt 0:00:48]} Rc2 {[%emt 0:00:31]} 39. Re7 {[%emt 0:00:59]} d3 {[%emt 0:00:47]} 40. Rxe5 {[%emt 0:00:03]} h5 {[%emt 0:00:38]} 41. Be4 {[%emt 0:19:22]} Rxc4 {[%emt 0:02:46]} 42. Bxd3 {[%emt 0:00:25]} 1/2-1/2

[Event "FIDE WSTC Open 50 2025"]
[Site "Prague"]
[Date "2025.02.20"]
[Round "4.30"]
[White "Ning, Chunhong"]
[Black "Berndt, Matthias"]
[Result "1/2-1/2"]
[Annotator "ChessBase"]
[ECO "D03"]
[WhiteElo "2257"]
[BlackElo "2072"]
[PlyCount "75"]
[EventDate "2025.02.17"]
[EventType "team-tourn"]
[EventCountry "CZE"]
[SourceTitle "playchess.com"]
[Source "ChessBase"]
[SourceQuality "1"]
[TimeControl "40/5400+30:1800+30"]

1. d4 {[%emt 0:00:04]} d5 {[%emt 0:00:09]} 2. Nf3 {[%emt 0:00:08]} Nf6 {[%emt 0:00:44]} 3. Bg5 {[%emt 0:00:20]} e6 {[%emt 0:00:41]} 4. e3 {[%emt 0:00:20]} c5 {[%emt 0:00:37]} 5. c3 {[%emt 0:00:29]} Nc6 {[%emt 0:00:27]} 6. Nbd2 {[%emt 0:00:33]} Qb6 {[%emt 0:02:35]} 7. Qc2 {[%emt 0:13:32]} Bd6 {[%emt 0:03:28]} 8. Bd3 {[%emt 0:07:02]} Bd7 {[%emt 0:04:11]} 9. O-O {[%emt 0:03:25]} Rc8 {[%emt 0:03:35]} 10. Qb3 {[%emt 0:17:52]} Qc7 {[%emt 0:05:50]} 11. Qd1 {[%emt 0:00:58]} h6 {[%emt 0:01:16]} 12. Bxf6 {[%emt 0:04:25]} gxf6 {[%emt 0:00:24]} 13. dxc5 {[%emt 0:00:04]} Bxc5 {[%emt 0:00:12]} 14. e4 {[%emt 0:00:04]} dxe4 {[%emt 0:01:11]} 15. Nxe4 {[%emt 0:00:05]} Be7 {[%emt 0:00:32]} 16. Qe2 {[%emt 0:01:08]} Qf4 {[%emt 0:09:13]} 17. Rad1 {[%emt 0:07:24]} f5 {[%emt 0:14:35]} 18. Qd2 {[%emt 0:13:53]} Qxd2 {[%emt 0:08:59]} 19. Nexd2 {[%emt 0:00:07]} Kd8 {[%emt 0:02:43]} 20. Rfe1 {[%emt 0:06:26]} Kc7 {[%emt 0:00:46]} 21. Nb3 {[%emt 0:05:55]} Rcd8 {[%emt 0:02:57]} 22. Nbd4 {[%emt 0:01:22]} Nxd4 {[%emt 0:04:46]} 23. Nxd4 {[%emt 0:00:04]} Bf6 {[%emt 0:00:46]} 24. Bc2 {[%emt 0:01:08]} Rhg8 {[%emt 0:00:55]} 25. f3 {[%emt 0:06:34]} a6 {[%emt 0:05:19]} 26. Kf2 {[%emt 0:00:27]} Bc8 {[%emt 0:01:18]} 27. Ne2 {[%emt 0:02:30]} Bh4+ {[%emt 0:02:10]} 28. g3 {[%emt 0:00:08]} Bf6 {[%emt 0:00:06]} 29. Rxd8 {[%emt 0:00:16]} Rxd8 {[%emt 0:00:15]} 30. Rd1 {[%emt 0:00:08]} Rxd1 {[%emt 0:00:51]} 31. Bxd1 {[%emt 0:00:00]} Bd7 {[%emt 0:00:18]} 32. Bb3 {[%emt 0:00:17]} Kd6 {[%emt 0:00:22]} 33. Ke3 {[%emt 0:00:26]} Bb5 {[%emt 0:02:01]} 34. Nd4 {[%emt 0:00:33]} Bd7 {[%emt 0:01:51]} 35. Bc2 {[%emt 0:00:17]} Kc5 {[%emt 0:02:00]} 36. Bd3 {[%emt 0:01:04]} Kd5 {[%emt 0:01:37]} 37. Bc2 {[%emt 0:00:13]} Kc5 {[%emt 0:00:08]} 38. Bd3 {[%emt 0:00:03]} 1/2-1/2

[Event "FIDE WSTC Open 50 2025"]
[Site "Prague"]
[Date "2025.02.20"]
[Round "4.31"]
[White "Kuna, Ralf-Michael"]
[Black "Liang, Zhihua"]
[Result "1/2-1/2"]
[Annotator "ChessBase"]
[ECO "B44"]
[WhiteElo "2072"]
[BlackElo "2205"]
[PlyCount "44"]
[EventDate "2025.02.17"]
[EventType "team-tourn"]
[EventCountry "CZE"]
[SourceTitle "playchess.com"]
[Source "ChessBase"]
[SourceQuality "1"]
[TimeControl "40/5400+30:1800+30"]

1. e4 {[%emt 0:00:06]} c5 {[%emt 0:00:25]} 2. Nf3 {[%emt 0:00:06]} e6 {[%emt 0:00:19]} 3. d4 {[%emt 0:00:28]} cxd4 {[%emt 0:00:03]} 4. Nxd4 {[%emt 0:00:07]} Nc6 {[%emt 0:00:10]} 5. Nb5 {[%emt 0:00:46]} d6 {[%emt 0:01:14]} 6. c4 {[%emt 0:00:10]} Nf6 {[%emt 0:00:45]} 7. N1c3 {[%emt 0:00:07]} a6 {[%emt 0:00:18]} 8. Na3 {[%emt 0:00:03]} Be7 {[%emt 0:00:20]} 9. Be2 {[%emt 0:00:04]} O-O {[%emt 0:00:08]} 10. O-O {[%emt 0:00:04]} b6 {[%emt 0:01:00]} 11. Be3 {[%emt 0:00:22]} Bb7 {[%emt 0:00:26]} 12. Qd2 {[%emt 0:00:35]} Ne5 {[%emt 0:09:19]} 13. f3 {[%emt 0:01:02]} Rc8 {[%emt 0:04:57]} 14. Rfd1 {[%emt 0:03:22]} Re8 {[%emt 0:01:25]} 15. Rac1 {[%emt 0:11:33]} Bf8 {[%emt 0:00:53]} 16. h3 {[%emt 0:09:43]} Ned7 {[%emt 0:05:15]} 17. Nc2 {[%emt 0:05:35]} Qe7 {[%emt 0:17:31]} 18. Nd4 {[%emt 0:09:05]} d5 {[%emt 0:10:46]} 19. cxd5 {[%emt 0:03:40]} exd5 {[%emt 0:00:15]} 20. Nf5 {[%emt 0:00:40]} Qe6 {[%emt 0:01:51]} 21. Nd4 {[%emt 0:01:21]} Qe5 22. Bf1 {[%emt 0:00:30]} Qe6 {[%emt 0:07:56]} 1/2-1/2

[Event "FIDE WSTC Open 50 2025"]
[Site "Prague"]
[Date "2025.02.20"]
[Round "4.32"]
[White "Liu, Shilan"]
[Black "Haentsch, Ralf"]
[Result "1/2-1/2"]
[Annotator "NA"]
[ECO "C78"]
[WhiteElo "2093"]
[BlackElo "2087"]
[PlyCount "60"]
[EventDate "2025.02.17"]
[EventType "team-tourn"]
[EventCountry "CZE"]
[SourceTitle "playchess.com"]
[Source "ChessBase"]
[SourceQuality "1"]
[TimeControl "40/5400+30:1800+30"]

1. e4 {[%emt 0:00:05]} e5 {[%emt 0:00:05]} 2. Nf3 {[%emt 0:00:07]} Nc6 {[%emt 0:00:14]} 3. Bb5 {[%emt 0:00:07]} a6 {[%emt 0:00:18]} 4. Ba4 {[%emt 0:00:06]} Nf6 {[%emt 0:00:38]} 5. O-O {[%emt 0:00:13]} b5 {[%emt 0:01:02]} 6. Bb3 {[%emt 0:00:12]} Be7 {[%emt 0:00:10]} 7. d3 {[%emt 0:00:29]} O-O {[%emt 0:01:58]} 8. Nc3 {[%emt 0:01:23]} d6 {[%emt 0:01:07]} 9. a4 {[%emt 0:02:01]} b4 {[%emt 0:01:59]} 10. Nd5 {[%emt 0:00:11]} Na5 {[%emt 0:05:58]} 11. Ba2 {[%emt 0:08:12]} Nxd5 {[%emt 0:03:17]} 12. Bxd5 {[%emt 0:00:12]} c6 {[%emt 0:09:09]} 13. Ba2 {[%emt 0:02:56]} c5 {[%emt 0:05:15]} 14. Bd5 {[%emt 0:03:59]} Rb8 {[%emt 0:03:35]} 15. Nd2 {[%emt 0:07:27]} Bg5 {[%emt 0:06:48]} 16. Nc4 {[%emt 0:02:01]} Nxc4 {[%emt 0:01:32]} 17. Bxc4 {[%emt 0:00:40]} a5 {[%emt 0:06:38]} 18. b3 {[%emt 0:01:28]} Qf6 {[%emt 0:07:16]} 19. Bxg5 {[%emt 0:01:34]} Qxg5 {[%emt 0:00:03]} 20. Qc1 {[%emt 0:00:26]} Qxc1 {[%emt 0:01:55]} 21. Raxc1 {[%emt 0:00:03]} Be6 {[%emt 0:02:24]} 22. Rcd1 {[%emt 0:03:49]} Rbe8 {[%emt 0:04:46]} 23. Bb5 {[%emt 0:06:34]} Re7 {[%emt 0:03:01]} 24. f4 {[%emt 0:00:45]} f6 {[%emt 0:07:55]} 25. Rd2 {[%emt 0:01:41]} g5 {[%emt 0:07:51]} 26. fxg5 {[%emt 0:05:44]} fxg5 {[%emt 0:00:20]} 27. Bc4 {[%emt 0:04:02]} Rxf1+ {[%emt 0:05:09]} 28. Kxf1 {[%emt 0:00:06]} Bxc4 {[%emt 0:03:25]} 29. dxc4 {[%emt 0:00:03]} Rf7+ {[%emt 0:00:10]} 30. Ke2 {[%emt 0:00:08]} Rf6 {[%emt 0:00:32]} 1/2-1/2